Workbook

Sheet Sheet1
A1: INSTRUCTIONS: Use this form when a single information collection document involves multiple reporting and recordkeeping requirements. The totals of the figures in cols. should be entered in item 13 of OMB-83-I: cols. (D) &/or (I) = 13a (respondent is only counted once); cols. F & I = 13b; cols. H & K = 13c. (F)Total/(D)Total = (E)Average (H)Total/(F)Total = (G)Average (K)Total/(I)Total = (J)Average NOTE: The columns will calculate automatically. If Col. E's response is something other than annually, i.e., 1/6 years, list as "1/6" & decimal will display. | I1: TITLE OF INFORMATION COLLECTION DOCUMENT | O1: OMB NO. | P1: 0560-0291
I3: WHIP and QLP
O4: DATE PREPARED
O5: 2025-04-17
A10: IDENTIFICATION OF REPORTING OR RECORDKEEPING REQUIREMENT | H10: ANNUAL BURDEN NEEDED FOR THIS REVISION
H12: REPORTS | N12: RECORDS | Q12: RESPONDENT COST
L14: TOTAL BURDEN HOURS | P14: TOTAL | S14: Previously Approved Burden Hours | T14: Program Change Due to Agency Discretion | U14: New Annual Hours
G15: FORMS NO (S) | H15: NO. OF | I15: NO OF | J15: TOTAL ANNUAL | K15: HOURS | L15: (Col. F x G) | N15: NO. OF | O15: ANNUAL | P15: RECORD- | Q15: COST | R15: TOTAL
A16: SECTION OF | B16: DESCRIPTION | G16: (If "none" | H16: RESPONDENTS | I16: RESPONSES | J16: RESPONSES | K16: PER | L16: (H) | N16: RECORD- | O16: HOURS PER | P16: KEEPING HOURS | Q16: PER | R16: COST
A17: REGS. | G17: so state) | I17: PER | J17: (Col. D x E) | K17: RESPONSE | N17: KEEPERS | O17: RECORD- | P17: (Col. I x J) | Q17: HOUR | R17: (Col. H x L)
I18: RESPONDENT | L18: EXEMPT | M18: NON-EXEMPT | O18: KEEPER
A19: (A) | B19: (B) | G19: (C) | H19: (D) | I19: (E) | J19: (F) | K19: (G) | N19: (I) | O19: (J) | P19: (K) | Q19: (L) | R19: (M)
B20: Wildfire Hurricane Idemnity Program Application | G20: FSA-890 (no longer needed) | H20: 0 | I20: 1 | J20: 0 | K20: 0.5 | M20: =SUM(J20*K20) -> 0 | Q20: 44.67 | R20: =SUM(M20*Q20) -> 0 | S20: 20416 | T20: 20416 | U20: 0
B21: Crop Insurance and/or NAP Coverage Agreement | G21: FSA-891 | H21: 4,592 | I21: 1 | J21: 4,592 | K21: 0.0833 | M21: 383 | Q21: 44.67 | R21: 17,108.61 | S21: 3401 | T21: 3019 | U21: 383
B22: Request for an Exeption to the WHIIP Payment Limitation of 125,000 | G22: FSA-892 (no longer needed) | H22: 0 | I22: 1 | J22: 0 | K22: 0.0833 | M22: 0 | Q22: 44.67 | R22: 0 | S22: 1360 | T22: 1360 | U22: 0
B23: 2018 Citrus Proudcrion History and Approved Field Records (Florida only) | G23: FSA-893 (no longer needed) | H23: 0 | I23: 1 | J23: 0 | K23: 0.0833 | M23: 0 | Q23: 44.67 | R23: 0 | S23: 274 | T23: 274 | U23: 0
B24: Wildfires and Hurriance Indemity Program Appplication (Continuation) | G24: FSA-890 (contiunuation) (no longer needed) | H24: 0 | I24: 1 | J24: 0 | K24: 0.25 | M24: 0 | Q24: 44.67 | R24: 0 | S24: 3062.5 | T24: 3062
B25: Application Grant for Florida | G25: Grant (no longer needed) | H25: 0 | I25: 1 | J25: 0 | K25: 0.333 | M25: 0 | Q25: 44.67 | R25: 0 | S25: 1097 | T25: 1097 | U25: 0
A26: 7 CFR Part 760 Subpart R | B26: Application | G26: FSA-898 (no longer needed) | H26: 0 | I26: 1 | J26: =SUM(H26*I26) -> 0 | K26: =45/60 -> 0.75 | M26: =SUM(J26*K26) -> 0 | Q26: 44.67 | R26: 0 | S26: 135000 | T26: 135000 | U26: 0
A27: 7 CFR Part 760 Subpart R | B27: Historical Nutritional Value Weighted Average Worksheet | G27: FSA-899 (no longer needed) | H27: 0 | I27: 2 | J27: 0 | K27: =45/60 -> 0.75 | M27: 0 | Q27: 44.67 | R27: 0 | S27: 14400 | T27: 14400
A28: 7 CFR Part 760 Subpart R | B28: Crop Insurance Noninsured Assistance Program Coverage Agreement | G28: FSA-895 | H28: 2,656 | I28: 1 | J28: 2,656 | K28: =5/60 -> 0.08 | M28: 221 | Q28: 44.67 | R28: =SUM(M28*Q28) -> 9,886.96 | S28: 1500 | T28: 1273 | U28: 221
A29: 7 CFR part 1400 | B29: Farm Operating Plan for an Entity | G29: CCC-902E (no longer needed) | H29: 0 | I29: 1 | J29: 0 | K29: =15/60 -> 0.25 | M29: 0 | Q29: 44.67 | R29: =SUM(M29*Q29) -> 0 | S29: 1125 | T29: 1125
A30: 7 CFR part 1400 | B30: Farm Operating Plan for an Individual | G30: CCC-902I (no longer needed) | H30: 0 | I30: 1 | J30: =SUM(H30*I30) -> 0 | K30: =15/60 -> 0.25 | M30: 0 | Q30: 44.67 | R30: 0 | S30: 1125 | T30: 1125 | U30: 0
A31: 7 CFR part 1400 | B31: Average Adjusted Gross Income (AGI) Certification and Consent to Disclosure of Tax Information | G31: CCC-941 (no longer needed) | H31: =H26*0.05 -> 0 | I31: 1 | J31: 0 | K31: =5/60 -> 0.08 | M31: =SUM(J31*K31) -> 0 | Q31: 44.67 | R31: 0 | S31: 750 | T31: 750 | U31: 0
A32: 7 CFR part 1400 | B32: Certification of Income From Farming, Ranching and Forestry Operations, optional | G32: CCC-942 (no longer needed) | H32: =H26*0.005 -> 0 | I32: 1 | J32: 0 | K32: =10/60 -> 0.17 | M32: 0 | Q32: 44.67 | R32: 0 | S32: 150 | T32: 150 | U32: 0
A33: 7 CFR part 1400 | B33: Member Information for Legal Entities, if applicable | G33: CCC-901 (no longer needed) | H33: =H26*0.01 -> 0 | I33: 1 | J33: 0 | K33: =30/60 -> 0.50 | M33: 0 | Q33: 44.67 | R33: 0 | S33: 900 | T33: 900 | U33: 0
A34: 7 CFR part 2 | B34: Highly Erodible Land Conservation (HELC) and Wetland Conservation Certification (exempt from PRA 16 U.S.C. 3846) | G34: AD-1026 (no longer needed) | H34: =H26*0.01 -> 0 | I34: 1 | J34: 0 | K34: =5/60 -> 0.08 | L34: =$J34*$K34 -> 0
B35: Report of Acreage | G35: FSA-578 (no longer needed) | H35: =H26*0.1 -> 0 | I35: 1 | J35: 0 | K35: 0.50 | L35: =$J35*$K35 -> 0
B39: SUBTOTAL | J39: =SUM(J20:J38) -> 7,248 | L39: =SUM(L26:L32) -> 0 | M39: =SUM(M21:M38) -> 604 | P39: =SUM(P26:P38) -> 0.00 | R39: $26,981.00 | S39: =SUM(S20:S38) -> 184560.5 | T39: 183951 | U39: =SUM(U20:U33) -> 604.00
B40: TOTAL OF ALL PAGES | J40: =SUM(J39) -> 7,248 | L40: =SUM(L39) -> 0 | M40: =SUM(M39) -> 604 | P40: =SUM(P39) -> 0.00
A41: TOTAL - COLUMNS "F" AND "I" = OMB 83-I, 13b; COLUMNS "H" AND "K" = OMB 83-I, 13c | J41: =SUM(J40+N40) -> 7,248 | M41: =SUM(M40+P40) -> 604
